bitfinex/quotes_SOLUSD_20250621
["timestamp","ask_amount","ask_price","bid_price","bid_amount"]
[1750496439690,10.30535905,141.56,141.52,17.66534765]
[1750496440090,8.32,141.59,141.52,17.66534765]
[1750496440293,9.62535905,141.57,141.53,9.62535905]
[1750496440482,19.32964886,141.58,141.54,9.62535905]
[1750496440483,28.27500791,141.58,141.54,9.62535905]
[1750496440687,28.27500791,141.58,141.53,26.47]
[1750496440886,28.27500791,141.58,141.54,9.62535905]
[1750496441095,9.62535905,141.58,141.54,9.62535905]
[1750496441519,9.62535905,141.58,141.55,24.72624513]
[1750496441696,0.68,141.58,141.55,24.72624513]
[1750496441998,10.30535905,141.58,141.55,24.72624513]
[1750496442180,28.95500791,141.58,141.55,24.72624513]
[1750496442495,10.30535905,141.56,141.55,24.72624513]
[1750496442805,9.62535905,141.56,141.55,24.72624513]
[1750496442976,18.64964886,141.58,141.55,24.72624513]
[1750496443172,9.62535905,141.57,141.55,24.72624513]
[1750496443699,10.30535905,141.58,141.55,17.66160367]
[1750496443883,9.62535905,141.57,141.55,17.66160367]
[1750496444595,26.0,141.44,141.35,0.69]
[1750496444794,26.0,141.43,141.35,10.31535905]
[1750496445090,9.62535905,141.42,141.36,9.62535905]
[1750496445683,9.62535905,141.39,141.33,9.62535905]
[1750496445982,9.62535905,141.38,141.32,10.31535905]
[1750496446193,9.62535905,141.34,141.29,7.76764172]
[1750496446596,9.62535905,141.34,141.29,17.39300077]
[1750496446782,14.69951931,141.34,141.29,21.77716103]
[1750496446979,14.69951931,141.34,141.3,0.69]
[1750496447208,14.69951931,141.32,141.28,8.71]
[1750496447379,14.69951931,141.31,141.28,8.71]
[1750496447582,14.69951931,141.32,141.28,15.78799859]
[1750496447778,26.0,141.35,141.28,15.78799859]
[1750496448088,26.69,141.36,141.28,30.4875179]
[1750496448304,14.69951931,141.33,141.28,30.4875179]
[1750496448682,14.69951931,141.32,141.28,30.4875179]
[1750496449091,14.69951931,141.32,141.28,15.78799859]
[1750496449783,0.69,141.38,141.29,14.69951931]
[1750496449985,14.69951931,141.35,141.31,14.69951931]
[1750496450296,14.69951931,141.35,141.31,15.38951931]
[1750496450511,14.69951931,141.35,141.31,0.69]
[1750496451179,14.69951931,141.35,141.31,15.38951931]
[1750496451694,14.69951931,141.35,141.32,7.07613925]
[1750496452998,14.69951931,141.34,141.32,7.07613925]
[1750496453712,26.0,141.36,141.32,7.07613925]
[1750496453911,14.69951931,141.34,141.32,7.07613925]
[1750496454582,14.69951931,141.34,141.31,7.07664001]
[1750496454783,14.69951931,141.33,141.31,7.07664001]
[1750496455013,14.69951931,141.32,141.31,7.07664001]
[1750496456306,18.64964886,141.35,141.31,7.07664001]
[1750496456810,14.69951931,141.33,141.3,18.38240844]
[1750496457008,14.69951931,141.33,141.3,17.69240844]
[1750496457718,14.69951931,141.32,141.3,17.69240844]
[1750496459716,18.64964886,141.35,141.3,17.69240844]
[1750496459890,19.33964886,141.35,141.3,17.69240844]
[1750496460497,14.69951931,141.33,141.3,17.69240844]
[1750496462013,14.69951931,141.33,141.3,24.76954927]
[1750496462709,14.69951931,141.32,141.3,24.76954927]
[1750496462915,14.69951931,141.33,141.3,24.76954927]
[1750496464002,14.69951931,141.34,141.3,24.76954927]
[1750496464204,14.69951931,141.34,141.3,17.69240844]
[1750496464808,15.38951931,141.34,141.3,17.69240844]
[1750496465718,26.69,141.38,141.32,14.69951931]
[1750496465896,26.69,141.38,141.32,15.38951931]
[1750496465897,33.34916817,141.37,141.32,15.38951931]
[1750496466312,33.34916817,141.37,141.33,25.45473501]
[1750496466722,14.69951931,141.36,141.33,25.45473501]
[1750496466890,9.64281841,141.36,141.33,25.45473501]
[1750496468332,9.64281841,141.36,141.33,24.76473501]
[1750496468626,9.64281841,141.36,141.33,17.68909644]
[1750496469905,18.64964886,141.37,141.33,24.76473501]
[1750496470226,9.64281841,141.36,141.33,24.76473501]
[1750496471610,9.64281841,141.36,141.34,7.74]
[1750496471928,9.64281841,141.36,141.35,7.07463742]
[1750496472401,0.69,141.36,141.35,7.07463742]
[1750496472603,10.33281841,141.36,141.35,7.07463742]
[1750496473017,18.64964886,141.37,141.35,7.07463742]
[1750496473199,9.64281841,141.36,141.35,7.07463742]
[1750496475725,10.35281841,141.36,141.35,7.07463742]
[1750496476026,0.71,141.35,141.34,14.81499674]
[1750496476220,10.35281841,141.35,141.34,14.81499674]
[1750496477206,29.00246727,141.35,141.34,7.74]
[1750496477405,29.00246727,141.35,141.34,14.81513796]
[1750496479443,9.64281841,141.35,141.34,14.81513796]
[1750496482313,10.35281841,141.35,141.34,14.81513796]
[1750496484431,10.35281841,141.35,141.34,7.74]
[1750496485514,29.00246727,141.35,141.34,7.74]
[1750496486018,29.00246727,141.35,141.34,14.81513796]
[1750496487430,34.25762278,141.35,141.34,14.81513796]
[1750496487629,34.25762278,141.35,141.26,51.15555887]
[1750496487630,18.64964886,141.34,141.3,7.07681413]
[1750496487827,9.64281841,141.31,141.3,7.07681413]
[1750496488536,14.91304468,141.31,141.3,7.07681413]
[1750496489452,14.93729114,141.31,141.29,7.07764172]
[1750496489751,5.29447273,141.3,141.29,7.79764172]
[1750496490732,32.49693152,141.35,141.29,35.13456445]
[1750496490927,14.93823979,141.34,141.29,34.41456445]
[1750496491225,14.93823979,141.33,141.3,0.72]
[1750496491435,14.93823979,141.32,141.3,0.72]
[1750496491633,19.35964886,141.35,141.31,7.07664001]
[1750496491851,5.29568493,141.34,141.31,7.07664001]
[1750496492148,5.29568493,141.33,141.31,7.07664001]
[1750496492313,14.93850334,141.32,141.31,7.07664001]
[1750496492742,5.29568493,141.32,141.31,7.07664001]
[1750496494241,5.29568493,141.32,141.31,7.79664001]
[1750496494448,28.29246727,141.35,141.31,25.48824003]
[1750496494653,14.93803149,141.34,141.31,25.48824003]
[1750496494835,5.29521308,141.33,141.31,25.48824003]
[1750496495030,9.64281841,141.34,141.31,25.48824003]
[1750496495235,5.29530067,141.33,141.31,25.48824003]
[1750496495436,9.64281841,141.34,141.31,25.48824003]
[1750496495638,5.2955851,141.33,141.31,25.48824003]
[1750496495851,9.64281841,141.34,141.31,25.48824003]
[1750496496150,5.29558629,141.33,141.31,25.48824003]
[1750496496460,9.64281841,141.34,141.31,24.76824003]
[1750496496666,5.29557799,141.33,141.31,24.76824003]
[1750496496822,18.64964886,141.35,141.31,24.76824003]
[1750496497023,14.938394,141.34,141.31,24.76824003]
[1750496497323,9.64281841,141.35,141.32,0.72]
[1750496497522,9.64281841,141.36,141.32,10.36281841]
[1750496497723,5.29503211,141.35,141.32,10.36281841]
[1750496497946,10.35281841,141.36,141.33,7.07563857]
[1750496498249,14.93788116,141.35,141.33,7.07563857]
[1750496498422,10.35281841,141.35,141.33,7.07563857]
[1750496498922,9.64281841,141.35,141.33,7.07563857]
[1750496499354,2.64750184,141.36,141.33,7.07563857]
[1750496499527,14.93796373,141.35,141.33,7.07563857]
[1750496499731,9.64281841,141.35,141.33,7.07563857]
[1750496500124,9.64281841,141.35,141.32,24.76648739]
[1750496500535,13.00053219,141.36,141.32,35.1293058]
[1750496500754,10.35281841,141.36,141.32,35.1293058]
[1750496501349,5.29528405,141.35,141.32,35.1293058]
[1750496501531,10.35281841,141.36,141.32,35.1293058]
[1750496501736,0.71,141.36,141.32,35.1293058]
[1750496501931,10.35281841,141.36,141.32,35.1293058]
[1750496502433,10.35281841,141.36,141.33,7.52]
[1750496502639,9.64281841,141.35,141.33,7.52]
[1750496503232,10.35281841,141.36,141.33,7.52]
[1750496503445,10.35281841,141.36,141.33,6.9366]
[1750496504047,10.35281841,141.36,141.34,7.07513796]
[1750496505760,0.71,141.36,141.34,7.07513796]
[1750496507459,18.64964886,141.38,141.36,0.68]
[1750496507952,18.64964886,141.38,141.36,10.32281841]
[1750496508766,18.64964886,141.38,141.37,7.07363655]
[1750496508926,6.79693924,141.4,141.37,34.40054635]
[1750496509127,18.64964886,141.4,141.38,9.64281841]
[1750496509655,26.73,141.42,141.38,10.32281841]
[1750496509857,31.29116902,141.42,141.38,9.64281841]
[1750496510067,18.64964886,141.4,141.38,9.64281841]
[1750496510274,19.37964886,141.4,141.37,34.40054635]
[1750496510439,18.64964886,141.4,141.37,34.40054635]
[1750496511026,18.64964886,141.4,141.37,24.75772794]
[1750496511329,18.64964886,141.4,141.37,34.40054635]
[1750496512433,18.64964886,141.4,141.37,35.08054635]
[1750496513669,18.64964886,141.41,141.39,9.64281841]
[1750496514156,0.73,141.43,141.39,9.64281841]
[1750496514363,18.64964886,141.43,141.4,9.64281841]
[1750496514537,18.64964886,141.43,141.4,17.16281841]
[1750496515167,18.64964886,141.43,141.4,17.84281841]
[1750496515664,18.64964886,141.43,141.41,7.07163566]
[1750496517273,14.92146414,141.45,141.41,35.07354324]
[1750496517443,18.64964886,141.45,141.42,10.32281841]
[1750496517637,18.64964886,141.45,141.43,7.07063565]
[1750496518454,18.64964886,141.45,141.43,16.71345406]
[1750496518965,18.64964886,141.45,141.43,7.07063565]
[1750496519975,18.64964886,141.45,141.43,7.75063565]
[1750496520177,0.73,141.49,141.44,0.68]
[1750496520476,10.37281841,141.47,141.43,35.07004318]
[1750496520680,0.73,141.46,141.43,34.39004318]
[1750496521942,9.64281841,141.47,141.43,34.39004318]
[1750496522142,10.37281841,141.47,141.43,34.39004318]
[1750496522347,10.37281841,141.47,141.43,35.07004318]
[1750496522765,9.64281841,141.47,141.43,35.07004318]
[1750496523474,18.64964886,141.48,141.43,35.07004318]
[1750496523970,9.64281841,141.47,141.43,35.07004318]
[1750496524273,10.37281841,141.47,141.43,35.07004318]
[1750496524974,0.73,141.44,141.43,24.74722477]
[1750496525170,10.37281841,141.44,141.43,24.74722477]
[1750496525754,9.64281841,141.44,141.43,24.74722477]
[1750496525952,28.29246727,141.44,141.41,24.75057595]
[1750496526264,29.02246727,141.44,141.41,24.75057595]
[1750496526659,28.29246727,141.44,141.41,24.75057595]
[1750496526883,9.64281841,141.43,141.41,24.75057595]
[1750496530086,9.64281841,141.42,141.41,7.07163566]
[1750496530288,116.13,141.46,141.42,0.68]
[1750496530489,9.64281841,141.45,141.42,0.68]
[1750496531690,9.64281841,141.45,141.41,34.39354324]
[1750496531882,10.37281841,141.45,141.41,34.39354324]
[1750496532182,10.37281841,141.45,141.41,35.07354324]
[1750496535387,10.37281841,141.45,141.41,25.43072483]
[1750496535587,10.37281841,141.45,141.41,35.07354324]
[1750496535760,9.64281841,141.44,141.41,25.43072483]
[1750496537191,9.64281841,141.45,141.42,0.72]
[1750496537368,9.64281841,141.45,141.41,34.39354324]
[1750496537571,9.64281841,141.45,141.42,0.72]
[1750496538181,9.64281841,141.45,141.41,34.39354324]
[1750496538558,9.64281841,141.45,141.43,7.07063565]
[1750496539296,134.04964886,141.46,141.43,25.46722477]
[1750496539481,54.29246727,141.46,141.43,25.46722477]
[1750496540093,55.01246727,141.46,141.43,24.74722477]
[1750496541196,29.01246727,141.45,141.43,17.67658912]
[1750496541492,26.0,141.46,141.43,17.67658912]
[1750496542001,35.64281841,141.46,141.43,18.39658912]
[1750496542171,35.64281841,141.46,141.44,0.72]
[1750496542367,28.29246727,141.47,141.44,0.72]
[1750496542586,18.64964886,141.47,141.44,9.64281841]
[1750496542771,18.64964886,141.47,141.45,0.72]
[1750496543172,18.64964886,141.47,141.46,7.06913615]
[1750496545193,18.64964886,141.47,141.44,24.7454751]
[1750496545497,28.29246727,141.47,141.44,24.7454751]
[1750496545790,28.29246727,141.47,141.45,0.72]
[1750496545997,18.64964886,141.47,141.45,0.72]
[1750496546998,18.64964886,141.47,141.46,7.06913615]
[1750496548564,27.5132,141.5,141.46,7.06913615]
[1750496548565,90.12,141.51,141.46,24.74197652]
[1750496548768,18.64964886,141.5,141.47,7.96]
[1750496549168,1.5186,141.53,141.48,10.36281841]
[1750496549403,18.64964886,141.52,141.48,10.36281841]
[1750496549569,28.29246727,141.52,141.48,10.36281841]
[1750496550202,18.64964886,141.52,141.49,0.72]
[1750496550378,28.29246727,141.52,141.5,7.0671378]
[1750496550783,18.64964886,141.52,141.5,7.0671378]
[1750496550985,28.29246727,141.52,141.5,7.0671378]
[1750496551398,29.01246727,141.52,141.5,7.0671378]
[1750496552107,19.36964886,141.52,141.5,7.0671378]
[1750496552402,9.64281841,141.51,141.49,17.66872742]
[1750496552598,10.36281841,141.5,141.49,17.66872742]
[1750496553693,0.72,141.49,141.48,7.06813683]
[1750496554003,99.04281841,141.52,141.49,0.72]
[1750496554180,28.29246727,141.52,141.49,0.72]
[1750496555203,29.01246727,141.52,141.48,41.62129733]
[1750496555378,29.01246727,141.52,141.48,42.34129733]
[1750496555578,10.36281841,141.51,141.48,31.97847892]
[1750496556605,10.36281841,141.5,141.48,31.97847892]
[1750496557111,9.64281841,141.51,141.48,31.97847892]
[1750496557697,0.72,141.52,141.48,31.97847892]
[1750496557876,9.64281841,141.51,141.48,31.97847892]
[1750496559805,0.72,141.52,141.48,31.97847892]
[1750496560004,9.64281841,141.51,141.48,31.97847892]
[1750496560593,9.64281841,141.51,141.48,32.69847892]
[1750496561002,0.72,141.52,141.48,31.97847892]
[1750496561202,9.64281841,141.52,141.49,0.72]
[1750496562095,9.64281841,141.52,141.5,7.0671378]
[1750496562411,29.01246727,141.53,141.5,24.73498232]
[1750496563196,19.36964886,141.53,141.5,24.73498232]
[1750496563397,29.01246727,141.53,141.5,24.73498232]
[1750496563803,28.29246727,141.53,141.5,24.73498232]
[1750496564006,28.29246727,141.53,141.5,25.45498232]
[1750496565198,9.64281841,141.54,141.51,0.74]
[1750496565786,1.5236,141.57,141.53,0.74]
[1750496565984,90.13,141.58,141.54,10.38281841]
[1750496565985,10.37281841,141.58,141.54,10.38281841]
[1750496566293,9.64281841,141.57,141.52,9.64281841]
[1750496566493,10.37281841,141.57,141.55,7.08]
[1750496567092,29.02246727,141.57,141.56,7.06414241]
[1750496568404,26.73,141.56,141.55,7.08]
[1750496568592,36.37281841,141.56,141.55,14.14464146]
[1750496568908,36.37281841,141.56,141.55,7.08]
[1750496571014,36.37281841,141.56,141.55,14.14464146]
[1750496572312,26.73,141.56,141.55,14.14464146]
[1750496572502,36.37281841,141.56,141.55,14.14464146]
[1750496573501,35.64281841,141.56,141.55,14.14464146]
[1750496574190,36.37281841,141.56,141.55,14.14464146]
[1750496574801,36.37281841,141.56,141.55,7.08]
[1750496575316,10.37281841,141.56,141.55,7.08]
[1750496575623,0.73,141.56,141.55,7.08]
[1750496575794,10.37281841,141.56,141.55,7.08]
[1750496578121,0.73,141.56,141.55,7.08]
[1750496578298,10.37281841,141.56,141.55,7.08]
[1750496580024,10.37281841,141.56,141.55,14.14464146]
[1750496580536,0.73,141.56,141.55,14.14464146]
[1750496580720,10.37281841,141.56,141.55,14.14464146]
[1750496581019,10.37281841,141.56,141.55,7.08]
[1750496581235,29.02246727,141.56,141.55,7.08]
[1750496581402,34.28634562,141.56,141.55,7.08]
[1750496582034,24.64352721,141.56,141.55,7.08]
[1750496582233,18.64964886,141.55,141.53,7.06559082]
[1750496582439,108.04964886,141.54,141.53,7.06559082]
[1750496582599,108.77964886,141.54,141.53,7.06559082]
[1750496582795,118.42246727,141.54,141.51,7.0666384]
[1750496583116,28.29246727,141.52,141.51,7.0666384]
[1750496583910,29.02246727,141.52,141.51,7.0666384]
[1750496584223,29.02246727,141.52,141.5,14.14697806]
[1750496584410,9.64281841,141.51,141.5,14.14697806]
[1750496585824,18.64964886,141.52,141.5,14.14697806]
[1750496586029,28.29246727,141.52,141.5,14.88697806]
[1750496587029,9.64281841,141.51,141.5,14.88697806]
[1750496587829,9.64281841,141.51,141.5,14.14697806]
[1750496590025,18.64964886,141.52,141.5,14.14697806]
[1750496590228,28.29246727,141.51,141.5,14.14697806]
[1750496594335,18.64964886,141.51,141.5,14.83697806]
[1750496594533,28.29246727,141.51,141.5,14.83697806]
[1750496596234,18.64964886,141.51,141.5,14.83697806]
[1750496596440,9.64281841,141.52,141.5,14.83697806]
[1750496597418,18.64964886,141.52,141.5,14.83697806]
[1750496597634,18.64964886,141.52,141.51,0.69]
[1750496598243,108.04964886,141.53,141.52,0.69]
[1750496598824,9.64281841,141.54,141.52,0.69]
[1750496599025,9.64281841,141.55,141.51,34.37605281]
[1750496599229,9.64281841,141.54,141.52,0.69]
[1750496599627,18.64964886,141.56,141.51,25.4232344]
[1750496599822,9.64281841,141.54,141.51,25.4232344]
[1750496600127,9.64281841,141.52,141.51,7.0666384]
[1750496602911,28.29246727,141.52,141.51,7.0666384]
[1750496603116,34.30127313,141.52,141.51,7.0666384]
[1750496605742,33.58127313,141.52,141.51,7.0666384]
[1750496605916,28.29246727,141.52,141.51,7.0666384]
[1750496606624,9.64281841,141.52,141.51,7.7566384]
[1750496607031,9.64281841,141.52,141.51,7.0666384]
[1750496607956,10.36281841,141.52,141.51,7.0666384]
[1750496608130,9.64281841,141.52,141.51,7.0666384]
[1750496610234,28.29246727,141.53,141.51,7.7566384]
[1750496610627,9.64281841,141.52,141.51,7.0666384]
[1750496612941,18.64964886,141.51,141.5,14.14702488]
[1750496613146,19.36964886,141.51,141.5,14.14702488]
[1750496613350,29.01246727,141.51,141.5,14.14702488]
[1750496613653,36.94877993,141.51,141.45,158.54235445]
[1750496613825,9.64281841,141.48,141.47,7.08]
[1750496614226,9.64281841,141.48,141.47,14.14863646]
[1750496619563,28.29246727,141.48,141.47,14.14863646]
[1750496620357,18.64964886,141.48,141.47,14.14863646]
[1750496620679,28.29246727,141.48,141.47,14.14863646]
[1750496620867,18.64964886,141.48,141.47,14.14863646]
[1750496621060,28.29246727,141.48,141.47,14.14863646]
[1750496621276,19.36964886,141.48,141.47,7.08]
[1750496621579,34.30008842,141.48,141.47,7.08]
[1750496621965,46.58640271,141.48,141.47,7.08]
[1750496622177,18.64964886,141.47,141.43,7.07028574]
[1750496622363,9.64281841,141.44,141.43,7.07028574]
[1750496624594,9.64281841,141.44,141.43,7.78028574]
[1750496625296,5.28366391,141.47,141.43,7.07028574]
[1750496625586,9.64281841,141.46,141.43,25.45687486]
[1750496625756,9.64281841,141.46,141.43,7.07028574]
[1750496625757,9.64281841,141.44,141.43,7.07028574]
[1750496626374,29.00246727,141.44,141.43,7.07028574]
[1750496627374,89.4,141.48,141.43,7.78028574]
[1750496627375,9.64281841,141.45,141.43,7.78028574]
[1750496628574,28.29246727,141.46,141.43,7.78028574]
[1750496628885,9.64281841,141.44,141.43,7.07028574]
[1750496629074,29.00246727,141.44,141.43,7.07028574]
[1750496629380,29.00246727,141.44,141.42,14.11094584]
[1750496629381,19.35964886,141.43,141.42,14.11094584]
[1750496629576,29.00246727,141.43,141.42,14.11094584]
[1750496630386,28.29246727,141.43,141.42,14.11094584]
[1750496634088,29.00246727,141.43,141.42,14.11094584]
[1750496634491,29.00246727,141.43,141.42,7.04]
[1750496634691,29.00246727,141.43,141.42,14.11113562]
[1750496635286,28.29246727,141.43,141.42,14.11113562]
[1750496635491,29.00246727,141.43,141.42,14.11113562]
[1750496639295,89.4,141.44,141.42,14.82113562]
[1750496639477,18.64964886,141.48,141.44,0.71]
[1750496639684,37.97051841,141.49,141.45,9.64281841]
[1750496640073,37.97051841,141.49,141.42,41.43179309]
[1750496640074,9.64281841,141.46,141.42,41.43179309]
[1750496640294,18.64964886,141.45,141.42,42.14179309]
[1750496641975,18.64964886,141.45,141.42,32.49897468]
[1750496642217,18.64964886,141.45,141.42,42.14179309]
[1750496642395,18.64964886,141.45,141.43,10.35281841]
[1750496642592,18.64964886,141.48,141.45,0.71]
[1750496642901,28.29246727,141.48,141.45,0.71]
[1750496643613,28.29246727,141.48,141.46,7.06913615]
[1750496644305,9.64281841,141.47,141.46,7.06913615]
[1750496645010,29.00246727,141.47,141.46,7.06913615]
[1750496645890,19.35964886,141.43,141.42,7.04]
[1750496646111,29.00246727,141.43,141.42,7.04]
[1750496646613,44.64964886,141.41,141.4,7.07193033]
[1750496646788,55.00246727,141.41,141.4,7.07193033]
[1750496646988,55.00246727,141.41,141.37,24.72396386]
[1750496646989,54.29246727,141.41,141.38,7.07313622]
[1750496647224,28.29246727,141.39,141.38,7.07313622]
[1750496648718,18.64964886,141.39,141.38,7.07313622]
[1750496650016,28.29246727,141.45,141.39,0.71]
[1750496650192,54.29246727,141.45,141.41,9.64281841]
[1750496650523,54.29246727,141.45,141.4,9.64281841]
[1750496650702,55.00246727,141.45,141.4,9.64281841]
[1750496651016,55.00246727,141.45,141.4,10.35281841]
[1750496651694,10.35281841,141.44,141.41,24.75072483]
[1750496652499,0.71,141.44,141.41,34.39354324]
[1750496652697,10.35281841,141.44,141.41,24.75072483]
[1750496653410,87.02964886,141.45,141.41,34.39354324]
[1750496653607,97.38246727,141.45,141.41,34.39354324]
[1750496653804,87.73964886,141.45,141.41,34.39354324]
[1750496654014,6.6093,141.47,141.43,9.64281841]
[1750496654015,89.4,141.44,141.43,9.64281841]
[1750496654194,18.64964886,141.44,141.42,0.71]
[1750496654395,18.64964886,141.44,141.43,9.64281841]
[1750496656322,18.64964886,141.44,141.43,16.71345406]
[1750496656641,18.64964886,141.44,141.43,7.07063565]
[1750496659541,18.64964886,141.44,141.42,7.07113562]
[1750496659832,18.64964886,141.44,141.42,16.71395403]
[1750496660121,18.64964886,141.44,141.42,17.45395403]
[1750496661310,18.64964886,141.44,141.42,7.07113562]
[1750496661518,18.64964886,141.44,141.42,16.71395403]
[1750496663721,18.64964886,141.44,141.42,17.45395403]
[1750496663925,18.64964886,141.44,141.42,7.81113562]
[1750496664226,18.64964886,141.44,141.43,9.64281841]
[1750496665326,18.64964886,141.44,141.43,16.71345406]
[1750496667414,18.64964886,141.44,141.43,7.07063565]
[1750496667615,18.64964886,141.44,141.43,16.71345406]
[1750496668431,18.64964886,141.44,141.43,7.07063565]
[1750496668631,18.64964886,141.44,141.43,16.71345406]
[1750496669628,18.64964886,141.44,141.43,7.07063565]
[1750496670431,18.64964886,141.44,141.43,17.45345406]
[1750496671127,18.64964886,141.47,141.43,34.39004318]
[1750496671315,18.64964886,141.47,141.45,9.64281841]
[1750496672030,18.64964886,141.47,141.46,7.06913615]
[1750496672809,18.64964886,141.47,141.46,17.45195456]
[1750496673714,18.64964886,141.47,141.46,16.71195456]
[1750496674210,18.64964886,141.47,141.46,7.06913615]
[1750496674211,19.38964886,141.47,141.46,7.06913615]
[1750496674536,18.64964886,141.47,141.46,7.06913615]
[1750496675541,19.38964886,141.47,141.46,7.06913615]
[1750496675911,18.64964886,141.47,141.46,7.06913615]
[1750496687542,19.32964886,141.47,141.45,16.71245432]
[1750496689472,19.32964886,141.47,141.45,7.06963591]
[1750496692460,18.64964886,141.47,141.45,7.06963591]
[1750496692659,18.64964886,141.48,141.47,0.7]
[1750496693067,18.64964886,141.5,141.48,0.7]
[1750496693284,18.64964886,141.5,141.49,9.64281841]
[1750496694064,18.64964886,141.5,141.49,7.06763728]
[1750496696462,18.64964886,141.5,141.48,7.06813683]
[1750496698556,0.68,141.49,141.48,7.06813683]
[1750496698754,19.32964886,141.49,141.48,7.06813683]
[1750496700076,19.32964886,141.49,141.47,24.73979855]
[1750496700471,19.32964886,141.49,141.47,31.69979855]
[1750496702889,18.64964886,141.48,141.47,31.69979855]
[1750496703050,28.97246727,141.48,141.47,14.02863646]
[1750496703657,34.26038458,141.48,141.47,14.02863646]
[1750496705358,36.90568417,141.48,141.47,14.02863646]
[1750496706058,34.26038458,141.48,141.47,14.02863646]
[1750496706258,28.97246727,141.48,141.47,14.02863646]
[1750496706990,18.64964886,141.48,141.47,14.02863646]
[1750496707365,44.64964886,141.48,141.47,14.02863646]
[1750496707566,18.64964886,141.48,141.47,14.72863646]
[1750496707858,131.78,141.51,141.47,32.40022761]
[1750496707859,115.4,141.51,141.47,32.40022761]
[1750496708185,18.64964886,141.49,141.48,10.34281841]
[1750496708589,18.64964886,141.5,141.48,10.34281841]
[1750496708800,18.64964886,141.51,141.5,0.7]
[1750496709087,13.48632064,141.53,141.51,0.7]
[1750496709293,13.48632064,141.53,141.51,10.34281841]
[1750496709579,13.48632064,141.53,141.47,76.68622832]
[1750496709580,32.1359695,141.53,141.52,7.06613906]
[1750496709890,47.74569376,141.53,141.52,7.06613906]
[1750496710258,38.10287535,141.53,141.52,7.06613906]
[1750496710582,42.45878791,141.53,141.52,7.06613906]
[1750496711474,18.64964886,141.52,141.5,27.31039732]
[1750496713573,18.64964886,141.52,141.5,34.37753512]
[1750496713973,18.64964886,141.52,141.5,24.73471671]
[1750496719797,29.00246727,141.52,141.5,24.73471671]
[1750496721195,28.29246727,141.52,141.49,7.06763728]
[1750496721401,29.00246727,141.52,141.49,7.06763728]
[1750496721584,34.28582352,141.52,141.49,7.06763728]
[1750496721784,23.93300511,141.52,141.49,25.4867305]
[1750496722093,28.29246727,141.52,141.49,25.4867305]
[1750496723879,29.00246727,141.52,141.49,25.4867305]
[1750496724700,19.35964886,141.48,141.47,7.06863646]
[1750496724902,19.35964886,141.47,141.46,13.96900835]
[1750496725217,29.00246727,141.47,141.46,13.96900835]
[1750496726718,29.00246727,141.47,141.46,6.9]
[1750496727181,74.22458717,141.47,141.46,6.9]
[1750496727777,74.22458717,141.47,141.39,10.39281841]
[1750496727778,18.64964886,141.43,141.41,6.9]
[1750496727990,19.35964886,141.43,141.42,7.07103063]
[1750496729194,29.00246727,141.43,141.42,7.07103063]
[1750496729505,28.29246727,141.43,141.42,7.07103063]
[1750496734522,89.4,141.45,141.42,24.74886969]
[1750496734693,18.64964886,141.44,141.42,34.3916881]
[1750496734895,99.04281841,141.45,141.43,0.75]
[1750496735712,99.04281841,141.45,141.42,25.49886969]
[1750496735914,26.0,141.43,141.42,7.07103063]
[1750496736215,36.35281841,141.43,141.42,7.07103063]
[1750496736523,55.00246727,141.43,141.41,13.97148254]
[1750496736696,0.71,141.42,141.41,13.97148254]
[1750496736891,10.35281841,141.42,141.41,13.97148254]
[1750496737721,9.64281841,141.42,141.41,13.97148254]
[1750496738210,28.29246727,141.42,141.41,13.97148254]
[1750496738414,18.64964886,141.42,141.41,13.97148254]
[1750496738804,28.29246727,141.42,141.41,13.97148254]
[1750496739815,18.64964886,141.42,141.41,13.97148254]
[1750496740127,89.4,141.45,141.42,0.75]
[1750496740419,89.4,141.45,141.43,0.75]
[1750496740598,18.64964886,141.45,141.43,0.75]
[1750496741608,18.64964886,141.45,141.44,7.07013574]
[1750496741995,28.29246727,141.45,141.44,7.07013574]
[1750496743308,9.64281841,141.45,141.42,25.49897468]
[1750496744300,9.64281841,141.44,141.42,24.74897468]
[1750496744619,9.64281841,141.43,141.42,24.74897468]
[1750496746907,9.64281841,141.43,141.42,7.07113562]
[1750496747311,10.33281841,141.43,141.42,7.07113562]
[1750496747539,9.64281841,141.43,141.39,7.07263597]
[1750496747834,28.29246727,141.4,141.39,7.07263597]
[1750496750122,18.64964886,141.4,141.39,7.07263597]
[1750496750624,18.64964886,141.42,141.4,0.7]
[1750496752431,18.64964886,141.42,141.41,7.07163566]
[1750496754229,28.29246727,141.42,141.41,7.07163566]
[1750496754530,28.29246727,141.42,141.39,24.75422589]
[1750496754703,19.33964886,141.42,141.39,24.75422589]
[1750496754904,28.98246727,141.42,141.39,24.75422589]
[1750496757219,28.29246727,141.42,141.39,25.45422589]
[1750496757555,18.64964886,141.42,141.4,0.7]
[1750496758629,18.64964886,141.42,141.41,7.07163566]